fUSD/lending_fUSD_20250112
["ID","MTS","AMOUNT","RATE_DAILY","PERIOD"]
[348621115,1736681436379,-500.0,9.984e-05,2]
[348621116,1736681436389,-476.1949559,9.984e-05,2]
[348621117,1736681436399,-500.0,9.984e-05,2]
[348621118,1736681436410,-500.0,9.984e-05,2]
[348621119,1736681436420,-500.5667896,9.984e-05,2]
[348621120,1736681436431,-500.0,9.984e-05,2]
[348621121,1736681436440,-500.0,9.984e-05,2]
[348621122,1736681436450,-500.0,9.984e-05,2]
[348621123,1736681436461,-500.0,9.984e-05,2]
[348621124,1736681436471,-503.32910166,9.984e-05,2]
[348621125,1736681436481,-503.04063844,9.984e-05,2]
[348621126,1736681436492,-500.0,9.984e-05,2]
[348621127,1736681436503,-615.94,9.984e-05,2]
[348621128,1736681436512,-500.0,9.984e-05,2]
[348621129,1736681436522,-508.22969326,9.984e-05,2]
[348621130,1736681436531,-500.0,9.984e-05,2]
[348621131,1736681436542,-500.0,9.984e-05,2]
[348621132,1736681436551,-500.0,9.984e-05,2]
[348621133,1736681436561,-316.588789,9.984e-05,2]
[348621134,1736681436571,-500.0,9.984e-05,2]
[348621135,1736681436582,-518.61,9.984e-05,2]
[348621136,1736681436592,-500.0,9.984e-05,2]
[348621137,1736681436601,-500.0,9.984e-05,2]
[348621138,1736681436611,-500.0,9.984e-05,2]
[348621139,1736681436620,-452.94568877,9.984e-05,2]
[348621140,1736681436629,-511.10501765,9.984e-05,2]
[348621141,1736681436638,-500.0,9.984e-05,2]
[348621142,1736681436647,-500.0,9.984e-05,2]
[348621143,1736681436656,-500.0,9.984e-05,2]
[348621144,1736681436665,-288.75622264,9.984e-05,2]
[348621145,1736681436674,-500.0,9.984e-05,2]
[348621146,1736681436683,-501.07088737,9.984e-05,2]
[348621147,1736681436693,-501.61535428,9.984e-05,2]
[348621148,1736681436705,-500.0,9.984e-05,2]
[348621149,1736681436715,-500.0,9.984e-05,2]
[348621150,1736681436724,-501.05451407,9.984e-05,2]
[348621151,1736681436733,-500.0,9.984e-05,2]
[348621152,1736681436744,-473.27664543,9.984e-05,2]
[348621153,1736681436754,-500.0,9.984e-05,2]
[348621154,1736681436763,-539.97857043,9.984e-05,2]
[348621155,1736681436772,-500.0,9.984e-05,2]
[348621156,1736681436781,-500.0,9.984e-05,2]
[348621157,1736681436792,-504.81096086,9.984e-05,2]
[348621158,1736681436801,-500.0,9.984e-05,2]
[348621159,1736681436811,-500.0,9.984e-05,2]
[348621160,1736681436820,-505.75373351,9.984e-05,2]
[348621161,1736681436830,-500.0,9.984e-05,2]
[348621162,1736681436841,-500.0,9.984e-05,2]
[348621163,1736681436851,-500.0,9.984e-05,2]
[348621164,1736681436863,-500.0,9.984e-05,2]
[348621165,1736681436872,-500.0,9.984e-05,2]
[348621166,1736681436882,-500.0,9.984e-05,2]
[348621167,1736681436891,-500.0,9.984e-05,2]
[348621168,1736681436901,-500.0,9.984e-05,2]
[348621169,1736681436912,-500.0,9.984e-05,2]
[348621170,1736681436923,-500.0,9.984e-05,2]
[348621171,1736681436934,-500.0,9.984e-05,2]
[348621172,1736681436944,-503.12311388,9.984e-05,2]
[348621173,1736681436953,-500.0,9.984e-05,2]
[348621174,1736681436964,-500.0,9.984e-05,2]
[348621175,1736681436978,-500.0,9.984e-05,2]
[348621176,1736681436988,-500.0,9.984e-05,2]
[348621177,1736681436997,-500.0,9.984e-05,2]
[348621178,1736681437007,-502.84135481,9.984e-05,2]
[348621179,1736681437016,-174.96732529,9.984e-05,2]
[348621180,1736681437026,-593.51436777,9.984e-05,2]
[348621181,1736681437036,-503.93253735,9.984e-05,2]
[348621182,1736681437045,-509.35166967,9.984e-05,2]
[348621183,1736681437054,-506.25762928,9.984e-05,2]
[348621184,1736681437066,-500.0,9.984e-05,2]
[348621185,1736681437075,-500.0,9.984e-05,2]
[348621186,1736681437085,-500.0,9.984e-05,2]
[348621187,1736681437094,-500.0,9.984e-05,2]
[348621188,1736681437103,-501.65646669,9.984e-05,2]
[348621189,1736681437112,-500.0,9.984e-05,2]
[348621190,1736681437121,-500.0,9.984e-05,2]
[348621191,1736681437131,-500.0,9.984e-05,2]
[348621192,1736681437140,-500.0,9.984e-05,2]
[348621193,1736681437149,-500.0,9.984e-05,2]
[348621194,1736681437158,-501.52614777,9.984e-05,2]
[348621195,1736681437167,-500.0,9.984e-05,2]
[348621196,1736681437177,-500.0,9.984e-05,2]
[348621197,1736681437186,-500.0,9.984e-05,2]
[348621198,1736681437195,-500.0,9.984e-05,2]
[348621199,1736681437203,-504.73948091,9.984e-05,2]
[348621200,1736681437212,-500.0,9.984e-05,2]
[348621201,1736681437221,-501.29193845,9.984e-05,2]
[348621202,1736681437231,-500.81745505,9.984e-05,2]
[348621203,1736681437239,-500.0,9.984e-05,2]
[348621204,1736681437249,-500.0,9.984e-05,2]
[348621205,1736681437258,-500.0,9.984e-05,2]
[348621206,1736681437267,-500.0,9.984e-05,2]
[348621207,1736681437276,-505.79516361,9.984e-05,2]
[348621208,1736681437285,-500.0,9.984e-05,2]
[348621210,1736681437294,-502.09216273,9.984e-05,2]
[348621211,1736681437304,-500.0,9.984e-05,2]
[348621213,1736681437313,-631.47,9.984e-05,2]
[348621214,1736681437322,-500.0,9.984e-05,2]
[348621215,1736681437331,-500.0,9.984e-05,2]
[348621216,1736681437340,-500.0,9.984e-05,2]
[348621217,1736681437349,-500.0,9.984e-05,2]
[348621218,1736681437359,-500.5738919,9.984e-05,2]
[348621219,1736681437368,-500.0,9.984e-05,2]
[348621220,1736681437378,-500.0,9.984e-05,2]
[348621221,1736681437387,-500.0,9.984e-05,2]
[348621222,1736681437396,-500.0,9.984e-05,2]
[348621223,1736681437405,-500.63453963,9.984e-05,2]
[348621224,1736681437414,-500.0,9.984e-05,2]
[348621225,1736681437423,-500.0,9.984e-05,2]
[348621226,1736681437433,-500.0,9.984e-05,2]
[348621227,1736681437606,-500.0,9.984e-05,2]
[348621228,1736681437616,-500.0,9.984e-05,2]
[348621229,1736681437626,-395.02981594,9.984e-05,2]
[348621230,1736681437635,-500.0,9.984e-05,2]
[348621231,1736681437644,-500.0,9.984e-05,2]
[348621232,1736681437653,-500.0,9.984e-05,2]
[348621233,1736681437662,-501.70947167,9.984e-05,2]
[348621234,1736681437672,-500.0,9.984e-05,2]
[348621235,1736681437681,-503.16154638,9.984e-05,2]
[348621236,1736681437690,-500.0,9.984e-05,2]
[348621237,1736681437699,-640.2319155,9.984e-05,2]
[348621238,1736681437708,-500.0,9.984e-05,2]
[348621239,1736681437718,-500.0,9.984e-05,2]
[348621240,1736681437727,-507.53323638,9.984e-05,2]
[348621241,1736681437736,-500.1898357,9.984e-05,2]
[348621242,1736681437746,-500.0,9.984e-05,2]
[348621243,1736681437755,-500.0,9.984e-05,2]
[348621244,1736681437764,-521.41,9.984e-05,2]
[348621245,1736681437773,-500.0,9.984e-05,2]
[348621246,1736681437782,-502.88532292,9.984e-05,2]
[348621247,1736681437792,-339.76727888,9.984e-05,2]
[348621248,1736681437801,-501.9157134,9.984e-05,2]
[348621249,1736681437811,-500.0,9.984e-05,2]
[348621250,1736681437821,-500.0,9.984e-05,2]
[348621251,1736681437831,-500.0,9.984e-05,2]
[348621252,1736681437840,-500.0,9.984e-05,2]
[348621253,1736681437850,-500.0,9.984e-05,2]
[348621254,1736681437860,-500.0,9.984e-05,2]
[348621255,1736681437870,-498.37097582,9.984e-05,2]
[348621256,1736681437879,-503.5191488,9.984e-05,2]
[348621257,1736681437889,-503.3550027,9.984e-05,2]
[348621258,1736681437898,-500.0,9.984e-05,2]
[348621259,1736681437908,-500.0,9.984e-05,2]
[348621260,1736681437917,-500.79644056,9.984e-05,2]
[348621261,1736681437927,-500.0,9.984e-05,2]
[348621262,1736681437937,-500.0,9.984e-05,2]
[348621263,1736681437946,-501.92696633,9.984e-05,2]
[348621264,1736681437955,-500.0,9.984e-05,2]
[348621265,1736681437964,-500.0,9.984e-05,2]
[348621266,1736681437977,-502.93173685,9.984e-05,2]
[348621267,1736681437986,-524.26543937,9.984e-05,2]
[348621268,1736681437995,-500.0,9.984e-05,2]
[348621269,1736681438003,-500.0,9.984e-05,2]
[348621270,1736681438014,-500.9955463,9.984e-05,2]
[348621271,1736681438023,-507.40193631,9.984e-05,2]
[348621272,1736681438032,-500.0,9.984e-05,2]
[348621273,1736681438042,-500.0,9.984e-05,2]
[348621274,1736681438052,-500.0,9.984e-05,2]
[348621275,1736681438062,-500.0,9.984e-05,2]
[348621276,1736681438072,-500.0,9.984e-05,2]
[348621277,1736681438081,-500.0,9.984e-05,2]
[348621278,1736681438090,-500.0,9.984e-05,2]
[348621279,1736681438099,-500.0,9.984e-05,2]
[348621280,1736681438108,-500.0,9.984e-05,2]
[348621281,1736681438117,-501.80002644,9.984e-05,2]
[348621282,1736681438126,-500.0,9.984e-05,2]
[348621283,1736681438136,-500.0,9.984e-05,2]
[348621284,1736681438145,-500.0,9.984e-05,2]
[348621285,1736681438155,-501.0590304,9.984e-05,2]
[348621286,1736681438164,-500.0,9.984e-05,2]
[348621287,1736681438173,-501.33762575,9.984e-05,2]
[348621288,1736681438183,-674.5,9.984e-05,2]
[348621289,1736681438192,-500.0,9.984e-05,2]
[348621290,1736681438201,-500.0,9.984e-05,2]
[348621291,1736681438210,-500.0,9.984e-05,2]
[348621292,1736681438220,-500.0,9.984e-05,2]
[348621293,1736681438229,-500.0,9.984e-05,2]
[348621294,1736681438238,-500.0,9.984e-05,2]
[348621295,1736681438248,-503.52602015,9.984e-05,2]
[348621296,1736681438257,-500.0,9.984e-05,2]
[348621297,1736681438267,-500.0,9.984e-05,2]
[348621298,1736681438276,-500.0,9.984e-05,2]
[348621299,1736681438285,-500.0,9.984e-05,2]
[348621300,1736681438294,-500.0,9.984e-05,2]
[348621301,1736681438303,-500.0,9.984e-05,2]
[348621302,1736681438312,-500.0,9.984e-05,2]
[348621303,1736681438321,-501.15151838,9.984e-05,2]
[348621304,1736681438330,-500.85419082,9.984e-05,2]
[348621305,1736681438340,-500.0,9.984e-05,2]
[348621306,1736681438349,-502.00187415,9.984e-05,2]
[348621307,1736681438358,-673.48,9.984e-05,2]
[348621308,1736681438368,-502.32746137,9.984e-05,2]
[348621309,1736681438378,-531.9,9.984e-05,2]
[348621310,1736681438387,-500.0,9.984e-05,2]
[348621311,1736681438396,-500.0,9.984e-05,2]
[348621312,1736681438405,-500.0,9.984e-05,2]
[348621313,1736681438414,-500.0,9.984e-05,2]
[348621314,1736681438423,-500.0,9.984e-05,2]
[348621315,1736681438432,-500.0,9.984e-05,2]
[348621316,1736681438441,-500.0,9.984e-05,2]
[348621317,1736681438450,-500.0,9.984e-05,2]
[348621318,1736681438458,-500.0,9.984e-05,2]
[348621319,1736681438469,-500.0,9.984e-05,2]
[348621320,1736681438479,-500.0,9.984e-05,2]
[348621321,1736681438487,-500.0,9.984e-05,2]
[348621322,1736681438497,-482.29991314,9.984e-05,2]
[348621323,1736681438506,-500.0,9.984e-05,2]
[348621324,1736681438515,-501.45164206,9.984e-05,2]
[348621325,1736681438525,-500.0,9.984e-05,2]
[348621326,1736681438534,-500.0,9.984e-05,2]
[348621327,1736681438543,-501.88695464,9.984e-05,2]
[348621328,1736681438553,-500.0,9.984e-05,2]
[348621329,1736681438562,-500.0,9.984e-05,2]
[348621330,1736681438572,-500.0,9.984e-05,2]
[348621331,1736681438581,-500.0,9.984e-05,2]
[348621332,1736681438590,-512.45984954,9.984e-05,2]
[348621333,1736681438599,-500.0,9.984e-05,2]
[348621334,1736681438608,-500.0,9.984e-05,2]
[348621335,1736681438617,-503.18351931,9.984e-05,2]
[348621336,1736681438626,-500.0,9.984e-05,2]
[348621337,1736681438635,-500.0,9.984e-05,2]
[348621338,1736681438644,-500.0,9.984e-05,2]
[348621339,1736681438653,-500.0,9.984e-05,2]
[348621340,1736681438663,-202.05115328,9.984e-05,2]
[348621341,1736681438672,-500.0,9.984e-05,2]
[348621342,1736681438682,-504.48289189,9.984e-05,2]
[348621343,1736681438691,-500.0,9.984e-05,2]
[348621344,1736681438700,-500.0,9.984e-05,2]
[348621345,1736681438709,-505.80880925,9.984e-05,2]
[348621346,1736681438720,-500.0,9.984e-05,2]
[348621347,1736681438729,-500.0,9.984e-05,2]
[348621348,1736681438739,-500.0,9.984e-05,2]
[348621349,1736681438748,-500.0,9.984e-05,2]
[348621350,1736681438758,-655.27,9.984e-05,2]
[348621351,1736681438767,-500.0,9.984e-05,2]
[348621352,1736681438776,-500.0,9.984e-05,2]
[348621353,1736681438785,-252.45510089,9.984e-05,2]
[348621354,1736681438794,-500.0,9.984e-05,2]
[348621355,1736681438803,-3437.88,9.984e-05,2]
[348621356,1736681438812,-500.0,9.984e-05,2]
[348621357,1736681438821,-500.0,9.984e-05,2]
[348621358,1736681438830,-500.0,9.984e-05,2]
[348621359,1736681438840,-500.0,9.984e-05,2]
[348621360,1736681438849,-500.0,9.984e-05,2]
[348621361,1736681438859,-500.0,9.984e-05,2]
[348621362,1736681438868,-500.0,9.984e-05,2]
[348621363,1736681438877,-500.0,9.984e-05,2]
[348621364,1736681438886,-500.0,9.984e-05,2]
[348621365,1736681438895,-500.0,9.984e-05,2]
[348621366,1736681438904,-500.0,9.984e-05,2]
[348621367,1736681438913,-500.0,9.984e-05,2]
[348621368,1736681438922,-500.0,9.984e-05,2]
[348621369,1736681438931,-504.57192912,9.984e-05,2]
[348621370,1736681438940,-500.0,9.984e-05,2]
[348621371,1736681438949,-500.0,9.984e-05,2]
[348621372,1736681438958,-500.0,9.984e-05,2]
[348621373,1736681438968,-500.0,9.984e-05,2]
[348621374,1736681438980,-500.0,9.984e-05,2]
[348621375,1736681438989,-500.0,9.984e-05,2]
[348621376,1736681438998,-500.0,9.984e-05,2]
[348621377,1736681439007,-862.54,9.984e-05,2]
[348621378,1736681439016,-500.0,9.984e-05,2]
[348621379,1736681439025,-500.0,9.984e-05,2]
[348621380,1736681439034,-500.0,9.984e-05,2]
[348621381,1736681439043,-500.0,9.984e-05,2]
[348621382,1736681439051,-500.0,9.984e-05,2]
[348621383,1736681439061,-500.0,9.984e-05,2]
[348621384,1736681439070,-500.0,9.984e-05,2]
[348621385,1736681439079,-657.33,9.984e-05,2]
[348621386,1736681439089,-500.0,9.984e-05,2]
[348621387,1736681439098,-165.04413965,9.984e-05,2]
[348621388,1736681439108,-500.0,9.984e-05,2]
[348621389,1736681439117,-1169.29,9.984e-05,2]
[348621390,1736681439126,-1264.92,9.984e-05,2]
[348621391,1736681439135,-500.0,9.984e-05,2]
[348621392,1736681439144,-500.0,9.984e-05,2]
[348621393,1736681439154,-500.0,9.984e-05,2]
[348621394,1736681439163,-500.0,9.984e-05,2]
[348621395,1736681439172,-502.61929144,9.984e-05,2]
[348621396,1736681439182,-500.0,9.984e-05,2]
[348621397,1736681439191,-500.0,9.984e-05,2]
[348621398,1736681439201,-500.0,9.984e-05,2]
[348621399,1736681439210,-1026.28,9.984e-05,2]
[348621400,1736681439220,-500.0,9.984e-05,2]
[348621401,1736681439230,-601.85862202,9.984e-05,2]
[348621402,1736681439239,-718.3,9.984e-05,2]
[348621403,1736681439249,-500.0,9.984e-05,2]
[348621404,1736681439258,-500.0,9.984e-05,2]
[348621405,1736681439267,-500.0,9.984e-05,2]
[348621406,1736681439276,-500.0,9.984e-05,2]
[348621407,1736681439286,-500.0,9.984e-05,2]
[348621408,1736681439295,-500.0,9.984e-05,2]
[348621409,1736681439304,-500.0,9.984e-05,2]
[348621410,1736681439313,-500.0,9.984e-05,2]
[348621411,1736681439323,-500.0,9.984e-05,2]
[348621412,1736681439332,-500.0,9.984e-05,2]
[348621413,1736681439342,-500.0,9.984e-05,2]
[348621414,1736681439351,-503.05845577,9.984e-05,2]
[348621415,1736681439360,-1372.74,9.984e-05,2]
[348621416,1736681439370,-500.0,9.984e-05,2]
[348621417,1736681439379,-500.0,9.984e-05,2]
[348621418,1736681439388,-500.0,9.984e-05,2]
[348621419,1736681439398,-510.99590369,9.984e-05,2]
[348621420,1736681439407,-500.0,9.984e-05,2]
[348621421,1736681439416,-500.0,9.984e-05,2]
[348621422,1736681439425,-503.29980166,9.984e-05,2]
[348621423,1736681439435,-500.0,9.984e-05,2]
[348621424,1736681439444,-500.0,9.984e-05,2]
[348621425,1736681439453,-500.0,9.984e-05,2]
[348621426,1736681439462,-500.0,9.984e-05,2]
[348621427,1736681439471,-500.0,9.984e-05,2]
[348621428,1736681439481,-500.0,9.984e-05,2]
[348621429,1736681439490,-500.0,9.984e-05,2]
[348621430,1736681439499,-638.07,9.984e-05,2]
[348621431,1736681439508,-497.54913441,9.984e-05,2]
[348621432,1736681439517,-687.19,9.984e-05,2]
[348621433,1736681439527,-500.0,9.984e-05,2]
[348621434,1736681439536,-1531.87,9.984e-05,2]
[348621435,1736681439545,-500.0,9.984e-05,2]
[348621436,1736681439555,-504.54489736,9.984e-05,2]
[348621437,1736681439564,-536.43039162,9.984e-05,2]
[348621438,1736681439574,-2094.76,9.984e-05,2]
[348621439,1736681439584,-500.0,9.984e-05,2]
[348621440,1736681439593,-500.0,9.984e-05,2]
[348621441,1736681439602,-150.59413411,9.984e-05,2]
[348621442,1736681439611,-505.04864856,9.985e-05,2]
[348621443,1736681439620,-500.0,9.985e-05,2]
[348621444,1736681439630,-500.0,9.985e-05,2]
[348621445,1736681439639,-500.0,9.985e-05,2]
[348621446,1736681439648,-500.0,9.985e-05,2]
[348621447,1736681439657,-501.03672191,9.985e-05,2]
[348621448,1736681439666,-500.0,9.985e-05,2]
[348621449,1736681439675,-176.67509475,9.985e-05,2]
[348621450,1736681439684,-500.0,9.985e-05,2]
[348621451,1736681439693,-500.0,9.985e-05,2]
[348621452,1736681439702,-500.0,9.985e-05,2]
[348621453,1736681439711,-500.0,9.985e-05,2]
[348621454,1736681439721,-500.0,9.985e-05,2]
[348621455,1736681439731,-500.0,9.985e-05,2]
[348621456,1736681439740,-300.0,9.985e-05,2]
[348621457,1736681439749,-504.0403135,9.985e-05,2]
[348621458,1736681439758,-500.0,9.985e-05,2]
[348621459,1736681439768,-500.0,9.985e-05,2]
[348621460,1736681439777,-500.0,9.985e-05,2]
[348621461,1736681439787,-500.0,9.985e-05,2]
[348621462,1736681439796,-500.0,9.985e-05,2]
[348621463,1736681439805,-500.0,9.985e-05,2]
[348621464,1736681439814,-500.34959369,9.985e-05,2]
[348621465,1736681439823,-501.77596862,9.985e-05,2]
[348621466,1736681439832,-500.0,9.985e-05,2]
[348621467,1736681439841,-500.0,9.985e-05,2]
[348621468,1736681439851,-500.0,9.985e-05,2]
[348621469,1736681439860,-500.0,9.985e-05,2]
[348621470,1736681439869,-500.0,9.985e-05,2]
[348621471,1736681439879,-511.2896865,9.985e-05,2]
[348621472,1736681439888,-516.69952134,9.985e-05,2]
[348621473,1736681439898,-500.0,9.985e-05,2]
[348621474,1736681439907,-500.0,9.985e-05,2]
[348621475,1736681439917,-500.0,9.985e-05,2]
[348621476,1736681439926,-504.90491456,9.985e-05,2]
[348621477,1736681439936,-508.22076774,9.985e-05,2]
[348621478,1736681439945,-500.0,9.985e-05,2]
[348621479,1736681439954,-500.0,9.985e-05,2]
[348621480,1736681439964,-500.0,9.985e-05,2]
[348621481,1736681439975,-500.0,9.985e-05,2]
[348621482,1736681439985,-500.0,9.985e-05,2]
[348621483,1736681439994,-500.0,9.985e-05,2]
[348621484,1736681440003,-336.7182533,9.985e-05,2]
[348621485,1736681440013,-500.0,9.985e-05,2]
[348621487,1736681440022,-500.0,9.985e-05,2]
[348621489,1736681440031,-500.0,9.985e-05,2]
[348621491,1736681440040,-500.0,9.985e-05,2]
[348621493,1736681440049,-642.90605133,9.985e-05,2]
[348621494,1736681440058,-500.0,9.985e-05,2]
[348621496,1736681440067,-636.6892584,9.985e-05,2]
[348621498,1736681440076,-500.0,9.985e-05,2]
[348621499,1736681440086,-500.0,9.985e-05,2]
[348621500,1736681440095,-595.25152967,9.985e-05,2]
[348621501,1736681440104,-500.0,9.985e-05,2]
[348621502,1736681440114,-500.0,9.985e-05,2]
[348621503,1736681440123,-500.0,9.985e-05,2]
[348621504,1736681440132,-500.0,9.985e-05,2]
[348621505,1736681440141,-500.0,9.985e-05,2]
[348621507,1736681440151,-500.0,9.985e-05,2]
[348621509,1736681440160,-519.41,9.985e-05,2]
[348621510,1736681440169,-500.0,9.985e-05,2]
[348621511,1736681440179,-500.0,9.985e-05,2]
[348621512,1736681440188,-500.0,9.985e-05,2]
[348621513,1736681440197,-500.0,9.985e-05,2]
[348621514,1736681440206,-500.0,9.985e-05,2]
[348621515,1736681440217,-504.12022236,9.985e-05,2]
[348621516,1736681440226,-500.0,9.985e-05,2]
[348621517,1736681440235,-500.0,9.985e-05,2]
[348621518,1736681440244,-764.1,9.985e-05,2]
[348621519,1736681440253,-500.0,9.985e-05,2]
[348621520,1736681440262,-500.0,9.985e-05,2]
[348621521,1736681440271,-525.87,9.985e-05,2]
[348621522,1736681440280,-426.27949663,9.985e-05,2]
[348621523,1736681440290,-595.12,9.985e-05,2]
[348621524,1736681440299,-511.44,9.985e-05,2]
[348621525,1736681440308,-766.95,9.985e-05,2]
[348621526,1736681440317,-500.0,9.985e-05,2]
[348621527,1736681440326,-824.57,9.985e-05,2]
[348621528,1736681440335,-611.95,9.985e-05,2]
[348621529,1736681440344,-574.6,9.985e-05,2]
[348621530,1736681440354,-902.89,9.985e-05,2]
[348621531,1736681440363,-500.0,9.985e-05,2]
[348621532,1736681440372,-500.0,9.985e-05,2]
[348621533,1736681440381,-500.0,9.985e-05,2]
[348621534,1736681440390,-500.0,9.985e-05,2]
[348621535,1736681440399,-500.0,9.985e-05,2]
[348621536,1736681440408,-1098.29,9.985e-05,2]
[348621537,1736681440418,-638.95,9.985e-05,2]
[348621538,1736681440427,-964.76,9.985e-05,2]
[348621539,1736681440436,-500.0,9.985e-05,2]
[348621540,1736681440445,-1091.11,9.985e-05,2]
[348621541,1736681440454,-500.0,9.985e-05,2]
[348621542,1736681440463,-566.82,9.985e-05,2]
[348621543,1736681440472,-500.0,9.985e-05,2]
[348621544,1736681440481,-798.7,9.985e-05,2]
[348621545,1736681440491,-500.0,9.985e-05,2]
[348621546,1736681440500,-1308.71,9.985e-05,2]
[348621547,1736681440509,-500.0,9.985e-05,2]
[348621548,1736681440518,-1550.34,9.985e-05,2]
[348621549,1736681440528,-1761.75,9.985e-05,2]
[348621550,1736681440538,-2675.71,9.985e-05,2]
[348621551,1736681440547,-7075.2,9.985e-05,2]
[348621552,1736681440556,-1198.11,9.985e-05,2]
[348621553,1736681440565,-500.0,9.985e-05,2]
[348621554,1736681440575,-848.65,9.985e-05,2]
[348621555,1736681440584,-933.84,9.985e-05,2]
[348621556,1736681440593,-1000.0,9.985e-05,2]
[348621557,1736681440602,-877.57,9.985e-05,2]
[348621558,1736681440611,-1109.89,9.985e-05,2]
[348621559,1736681440620,-150.59413411,9.985e-05,2]
[348621560,1736681440629,-500.0,9.986e-05,2]
[348621561,1736681440639,-2465.88,9.986e-05,2]
[348621562,1736681440648,-501.58268523,9.986e-05,2]
[348621563,1736681440657,-2743.82,9.986e-05,2]
[348621564,1736681440667,-500.0,9.986e-05,2]
[348621565,1736681440676,-1097.72,9.986e-05,2]
[348621566,1736681440685,-1401.45,9.986e-05,2]
[348621567,1736681440695,-500.0,9.986e-05,2]
[348621568,1736681440704,-1941.58,9.986e-05,2]
[348621569,1736681440869,-500.0,9.986e-05,2]
[348621570,1736681440878,-150.59413411,9.986e-05,2]
[348621571,1736681440887,-2142.46,9.987e-05,2]
[348621572,1736681440896,-150.59413411,9.988e-05,2]
[348621573,1736681440905,-150.59413411,9.989e-05,2]
[348621574,1736681440915,-150.59413411,9.99e-05,2]
[348621575,1736681440923,-150.59413411,9.991e-05,2]
[348621576,1736681440932,-4409.5093582,9.992e-05,2]
[348621577,1736681440941,-970.6348339,9.992e-05,2]
[348621578,1736681440950,-150.59413411,9.992e-05,2]
[348621579,1736681440959,-501.58268523,9.993e-05,2]
[348621580,1736681440970,-150.59413411,9.993e-05,2]
[348621581,1736681440984,-150.59413411,9.994e-05,2]
[348621582,1736681440994,-150.59413411,9.995e-05,2]
[348621583,1736681441003,-150.59413411,9.997e-05,2]
[348621584,1736681441013,-411.86947311,9.997e-05,2]
[348621585,1736681441022,-501.71796041,9.997e-05,2]
[348621586,1736681441031,-612.33952226,9.997e-05,2]
[348621587,1736681441040,-500.0,9.997e-05,2]
[348621588,1736681441050,-150.59413411,9.998e-05,2]
[348621589,1736681441059,-123755.37835246,9.998e-05,3]
[348621590,1736681441452,-831.532,9.998e-05,3]
[348621591,1736681441493,-483.04,9.982e-05,2]
[348621610,1736681442742,-16.96,9.982e-05,2]
[348621611,1736681442751,-500.0,9.982e-05,2]
[348621612,1736681442760,-337.267843,9.982e-05,2]
[348621613,1736681442787,-162.732157,9.982e-05,2]
[348621618,1736681442797,-500.0,9.982e-05,2]
[348621620,1736681442990,-500.0,9.982e-05,2]
[348621622,1736681442999,-1400.32416727,9.998e-05,3]
[348621624,1736681443012,-3202.27586594,9.998e-05,3]
[348621627,1736681443023,-1079.71084489,9.998e-05,3]
[348621649,1736681443857,-500.0,9.982e-05,2]
[348621650,1736681443866,-111199.07538965,9.998e-05,3]
[348621651,1736681443875,-1512.5,9.998e-05,2]
[348621652,1736681443884,-3787.48,9.998e-05,2]
[348621653,1736681443893,-626.13547591,9.998e-05,2]
[348621654,1736681443905,-1078.93452409,9.998e-05,2]
[348621655,1736681443914,-2640.25,9.998e-05,2]
[348621656,1736681443924,-1580.22,9.998e-05,2]
[348621657,1736681443933,-151.0,9.998e-05,2]
[348621658,1736681443943,-1738.23,9.998e-05,2]
[348621659,1736681443953,-500.0,9.998e-05,2]
[348621660,1736681443962,-1016.8,9.998e-05,2]
[348621661,1736681443973,-2485.81,9.998e-05,2]
[348621662,1736681443983,-1026.36,9.998e-05,2]
[348621663,1736681443992,-2066.52244516,9.998e-05,2]
[348621664,1736681444001,-150.59413411,9.999e-05,2]
[348621665,1736681444011,-1017.75628451,9.999e-05,3]
[348621666,1736681444021,-1017.75628451,9.999e-05,3]
[348621667,1736681444030,-1017.75628451,9.999e-05,3]
[348621668,1736681444039,-1017.75628451,9.999e-05,3]
[348621669,1736681444049,-1017.75628451,9.999e-05,3]
[348621670,1736681444059,-1017.75628451,9.999e-05,3]
[348621671,1736681444068,-1017.75628451,9.999e-05,3]
[348621672,1736681444078,-1038.10045899,9.999e-05,3]